Workbook

Sheet Main
E1: 2018-10-01
E2: 2018-10-31

Sheet Overall cost
B1: Report Month | C1: =Main!E1 -> 2018-10-01 | D1: =EOMONTH(C1,0) -> 2018-10-31 | E1: =C1 -> 2018-10-01 | F1: Balancing Cost | G1: =F1&TEXT(E1,"mmm yyyy") -> Balancing Cost Oct 2018
B3: Balancing Mechanism | C3: Trades | D3: Ancillary Services | E3: SO-to-SO | F3: Other | G3: Total
B4: =SUMIF(#REF!,'Overall cost'!$D$1,#REF!) ->  | C4: =SUMIF(#REF!,'Overall cost'!$D$1,#REF!) ->  | D4: =HLOOKUP($C$1,#REF!,2,FALSE)-E4 ->  | E4: =SUMIF(#REF!,'Overall cost'!$D$1,#REF!) ->  | F4: =SUMIF(#REF!,'Overall cost'!$D$1,#REF!)+SUMIF(#REF!,'Overall cost'!$D$1,#REF!)+SUMIF(#REF!,'Overall cost'!$D$1,#REF!) ->  | G4: =SUM(B4:F4) -> 

Sheet Total categories
B2: Cost £m | C2: 2018-04-30 | D2: 2018-05-31 | E2: 2018-06-30 | F2: 2018-07-31 | G2: 2018-08-31 | H2: 2018-09-30 | I2: 2018-10-31 | J2: 2018-11-30 | K2: 2018-12-31 | L2: 2019-01-31 | M2: 2019-02-28 | N2: 2019-03-31
B3: Energy Imbalance | C3: -5.678595773 | D3: -6.760679548 | E3: -2.810221268 | F3: -1.110751301 | G3: -3.902354275 | H3: -0.668759255 | I3: -0.043433795
B4: Operating Reserve | C4: 4.056805357 | D4: 4.384309523 | E4: 3.483851147 | F4: 4.788280494 | G4: 4.66708187 | H4: 5.534766192 | I4: 8.044610583
B5: STOR | C5: 6.095354112 | D5: 7.038844709 | E5: 6.645067193 | F5: 7.360510271 | G5: 6.657380294 | H5: 5.758893326 | I5: 5.34099181
B6: Constraints | C6: 25.4380063 | D6: 24.54662106 | E6: 51.19688232 | F6: 39.15100587 | G6: 35.49343856 | H6: 102.1830274 | I6: 104.0348876
B7: Negative Reserve | C7: 0.4200337111 | D7: 2.057471895 | E7: 0.4077661289 | F7: 0.5725288452 | G7: 0.3958837945 | H7: 0.5636834782 | I7: 0.2119426647
B8: Fast Reserve | C8: 6.461642445 | D8: 6.469285509 | E8: 6.079396646 | F8: 7.562294505 | G8: 8.244163722 | H8: 7.517651604 | I8: 8.46674194
B9: Response | C9: 11.01178477 | D9: 12.21229682 | E9: 11.44571155 | F9: 10.50263577 | G9: 10.56591483 | H9: 11.36939596 | I9: 10.5116182
B10: Other Reserve | C10: 0.78612493 | D10: 0.91854516 | E10: 0.82870663 | F10: 1.16959355 | G10: 1.24342758 | H10: 1.05517497 | I10: 1.322331023
B11: Reactive | C11: 6.33631816 | D11: 7.048782982 | E11: 7.35970441 | F11: 6.55244315 | G11: 6.695302748 | H11: 6.086499632 | I11: 7.00783291
B12: Black Start | C12: 3.36605017 | D12: 3.670413224 | E12: 3.22536055 | F12: 2.86512176 | G12: 3.38529618 | H12: 3.44057473 | I12: 3.47276196
B13: Minor Components | C13: 1.357080853 | D13: 0.8386408895 | E13: 0.9847897582 | F13: 1.005626605 | G13: 1.86599451 | H13: 1.405677192 | I13: 0.4597940306
B14: Total | C14: =SUM(C3:C13) -> 59.65060504 | D14: =SUM(D3:D13) -> 62.42453223 | E14: 88.84701506 | F14: =SUM(F3:F13) -> 80.41928952 | G14: =SUM(G3:G13) -> 75.31152982 | H14: =SUM(H3:H13) -> 144.2465852 | I14: =SUM(I3:I13) -> 148.8300789 | J14: =SUM(J3:J13) -> 0 | K14: =SUM(K3:K13) -> 0 | L14: =SUM(L3:L13) -> 0 | M14: =SUM(M3:M13) -> 0 | N14: =SUM(N3:N13) -> 0
B17: Volume MW | C17: 2018-04-30 | D17: 2018-05-31 | E17: 2018-06-30 | F17: 2018-07-31 | G17: 2018-08-31 | H17: 2018-09-30 | I17: 2018-10-31 | J17: 2018-11-30 | K17: 2018-12-31 | L17: 2019-01-31 | M17: 2019-02-28 | N17: 2019-03-31
B18: Energy Imbalance | C18: =SUMIF(#REF!,'Total categories'!C$17,#REF!) ->  | D18: =SUMIF(#REF!,'Total categories'!D$17,#REF!) ->  | E18: =SUMIF(#REF!,'Total categories'!E$17,#REF!) ->  | F18: =SUMIF(#REF!,'Total categories'!F$17,#REF!) ->  | G18: =SUMIF(#REF!,'Total categories'!G$17,#REF!) ->  | H18: =SUMIF(#REF!,'Total categories'!H$17,#REF!) ->  | I18: =SUMIF(#REF!,'Total categories'!I$17,#REF!) -> 
B19: Operating Reserve | C19: =SUMIF(#REF!,'Total categories'!C$17,#REF!) ->  | D19: =SUMIF(#REF!,'Total categories'!D$17,#REF!) ->  | E19: =SUMIF(#REF!,'Total categories'!E$17,#REF!) ->  | F19: =SUMIF(#REF!,'Total categories'!F$17,#REF!) ->  | G19: =SUMIF(#REF!,'Total categories'!G$17,#REF!) ->  | H19: =SUMIF(#REF!,'Total categories'!H$17,#REF!) ->  | I19: =SUMIF(#REF!,'Total categories'!I$17,#REF!) -> 
B20: STOR (BM only) | C20: =SUMIF(#REF!,'Total categories'!C$17,#REF!) ->  | D20: =SUMIF(#REF!,'Total categories'!D$17,#REF!) ->  | E20: =SUMIF(#REF!,'Total categories'!E$17,#REF!) ->  | F20: =SUMIF(#REF!,'Total categories'!F$17,#REF!) ->  | G20: =SUMIF(#REF!,'Total categories'!G$17,#REF!) ->  | H20: =SUMIF(#REF!,'Total categories'!H$17,#REF!) ->  | I20: =SUMIF(#REF!,'Total categories'!I$17,#REF!) -> 
B21: Constraints | C21: =SUMIF(#REF!,'Total categories'!C$17,#REF!) ->  | D21: =SUMIF(#REF!,'Total categories'!D$17,#REF!) ->  | E21: =SUMIF(#REF!,'Total categories'!E$17,#REF!) ->  | F21: =SUMIF(#REF!,'Total categories'!F$17,#REF!) ->  | G21: =SUMIF(#REF!,'Total categories'!G$17,#REF!) ->  | H21: =SUMIF(#REF!,'Total categories'!H$17,#REF!) ->  | I21: =SUMIF(#REF!,'Total categories'!I$17,#REF!) -> 
B22: Constraint Margin Replacement | C22: =SUMIF(#REF!,'Total categories'!C$17,#REF!) ->  | D22: =SUMIF(#REF!,'Total categories'!D$17,#REF!) ->  | E22: =SUMIF(#REF!,'Total categories'!E$17,#REF!) ->  | F22: =SUMIF(#REF!,'Total categories'!F$17,#REF!) ->  | G22: =SUMIF(#REF!,'Total categories'!G$17,#REF!) ->  | H22: =SUMIF(#REF!,'Total categories'!H$17,#REF!) ->  | I22: =SUMIF(#REF!,'Total categories'!I$17,#REF!) -> 
B23: Negative Reserve | C23: =SUMIF(#REF!,'Total categories'!C$17,#REF!) ->  | D23: =SUMIF(#REF!,'Total categories'!D$17,#REF!) ->  | E23: =SUMIF(#REF!,'Total categories'!E$17,#REF!) ->  | F23: =SUMIF(#REF!,'Total categories'!F$17,#REF!) ->  | G23: =SUMIF(#REF!,'Total categories'!G$17,#REF!) ->  | H23: =SUMIF(#REF!,'Total categories'!H$17,#REF!) ->  | I23: =SUMIF(#REF!,'Total categories'!I$17,#REF!) -> 
B24: Fast Reserve (BM only) | C24: =SUMIF(#REF!,'Total categories'!C$17,#REF!) ->  | D24: =SUMIF(#REF!,'Total categories'!D$17,#REF!) ->  | E24: =SUMIF(#REF!,'Total categories'!E$17,#REF!) ->  | F24: =SUMIF(#REF!,'Total categories'!F$17,#REF!) ->  | G24: =SUMIF(#REF!,'Total categories'!G$17,#REF!) ->  | H24: =SUMIF(#REF!,'Total categories'!H$17,#REF!) ->  | I24: =SUMIF(#REF!,'Total categories'!I$17,#REF!) -> 
B25: Response (Absolute- BM only) | C25: =SUMIF(#REF!,'Total categories'!C$17,#REF!) ->  | D25: =SUMIF(#REF!,'Total categories'!D$17,#REF!) ->  | E25: =SUMIF(#REF!,'Total categories'!E$17,#REF!) ->  | F25: =SUMIF(#REF!,'Total categories'!F$17,#REF!) ->  | G25: =SUMIF(#REF!,'Total categories'!G$17,#REF!) ->  | H25: =SUMIF(#REF!,'Total categories'!H$17,#REF!) ->  | I25: =SUMIF(#REF!,'Total categories'!I$17,#REF!) -> 
B26: Minor Components | C26: =SUMIF(#REF!,'Total categories'!C$17,#REF!) ->  | D26: =SUMIF(#REF!,'Total categories'!D$17,#REF!) ->  | E26: =SUMIF(#REF!,'Total categories'!E$17,#REF!) ->  | F26: =SUMIF(#REF!,'Total categories'!F$17,#REF!) ->  | G26: =SUMIF(#REF!,'Total categories'!G$17,#REF!) ->  | H26: =SUMIF(#REF!,'Total categories'!H$17,#REF!) ->  | I26: =SUMIF(#REF!,'Total categories'!I$17,#REF!) -> 
B30: Reporting Month
B31: Energy Imbalance | C31: =INDEX($C$3:$N$13,MATCH(B31,$B$3:$B$13,0),MATCH(Main!$E$2,'Total categories'!$C$2:$N$2,0)) -> -0.043433795
B32: Operating Reserve | C32: =INDEX($C$3:$N$13,MATCH(B32,$B$3:$B$13,0),MATCH(Main!$E$2,'Total categories'!$C$2:$N$2,0)) -> 8.044610583
B33: STOR | C33: =INDEX($C$3:$N$13,MATCH(B33,$B$3:$B$13,0),MATCH(Main!$E$2,'Total categories'!$C$2:$N$2,0)) -> 5.34099181
B34: Constraints | C34: =INDEX($C$3:$N$13,MATCH(B34,$B$3:$B$13,0),MATCH(Main!$E$2,'Total categories'!$C$2:$N$2,0)) -> 104.0348876
B35: Negative Reserve | C35: =INDEX($C$3:$N$13,MATCH(B35,$B$3:$B$13,0),MATCH(Main!$E$2,'Total categories'!$C$2:$N$2,0)) -> 0.2119426647
B36: Fast Reserve | C36: =INDEX($C$3:$N$13,MATCH(B36,$B$3:$B$13,0),MATCH(Main!$E$2,'Total categories'!$C$2:$N$2,0)) -> 8.46674194
B37: Response | C37: =INDEX($C$3:$N$13,MATCH(B37,$B$3:$B$13,0),MATCH(Main!$E$2,'Total categories'!$C$2:$N$2,0)) -> 10.5116182
B38: Other Reserve | C38: =INDEX($C$3:$N$13,MATCH(B38,$B$3:$B$13,0),MATCH(Main!$E$2,'Total categories'!$C$2:$N$2,0)) -> 1.322331023
B39: Reactive | C39: =INDEX($C$3:$N$13,MATCH(B39,$B$3:$B$13,0),MATCH(Main!$E$2,'Total categories'!$C$2:$N$2,0)) -> 7.00783291
B40: Black Start | C40: =INDEX($C$3:$N$13,MATCH(B40,$B$3:$B$13,0),MATCH(Main!$E$2,'Total categories'!$C$2:$N$2,0)) -> 3.47276196
B41: Minor Components | C41: =INDEX($C$3:$N$13,MATCH(B41,$B$3:$B$13,0),MATCH(Main!$E$2,'Total categories'!$C$2:$N$2,0)) -> 0.4597940306

Sheet BM total
C1: =EOMONTH(C2,0) -> 2018-04-30 | D1: =EOMONTH(D2,0) -> 2018-05-31 | E1: 2018-06-30 | F1: 2018-07-31 | G1: 2018-08-31 | H1: 2018-09-30 | I1: 2018-10-31 | J1: 2018-11-30 | K1: 2018-12-31 | L1: 2019-01-31 | M1: 2019-02-28 | N1: 2019-03-31
B2: Cost £m | C2: 2018-04-30 | D2: 2018-05-31 | E2: 2018-06-30 | F2: 2018-07-31 | G2: 2018-08-31 | H2: 2018-09-30 | I2: 2018-10-31 | J2: 2018-11-30 | K2: 2018-12-31 | L2: 2019-01-31 | M2: 2019-02-28 | N2: 2019-03-31
B3: BM - Energy balancing | C3: -5.678595773 | D3: -6.712937225 | E3: -2.747775024 | F3: -1.051467963 | G3: -3.870658723 | H3: -0.752816714 | I3: -0.636451303
B4: BM - Operating Reserve | C4: 2.511075195 | D4: 2.132644636 | E4: 0.8596827296 | F4: 2.0434516 | G4: 2.31628933 | H4: 1.599050273 | I4: 4.032264678
B5: BM - STOR | C5: 0.3228693417 | D5: 0.2755518486 | E5: 0.1754548433 | F5: 0.2664216513 | G5: 0.1899691236 | H5: 0.3247712665 | I5: 0.2854512396
B6: BM - Constrained Margin | C6: 1.476158122 | D6: 1.848030447 | E6: 2.278635405 | F6: 2.449887149 | G6: 1.606324578 | H6: 3.797432572 | I6: 3.429217601
B7: BM - Constraints E&W | C7: 5.43563308 | D7: 10.69879598 | E7: 19.70849852 | F7: 22.08933909 | G7: 17.60611167 | H7: 59.472696 | I7: 56.06073057
B8: BM - Constraints Cheviot | C8: 13.20339957 | D8: 1.3377995 | E8: 7.211287278 | F8: 0.8087402287 | G8: 1.377806204 | H8: 17.0867545 | I8: 7.773750593
B9: BM - Constraints Scotland | C9: 0.08019111441 | D9: 1.548886014 | E9: 4.753970902 | F9: 0.2337361441 | G9: 1.252908006 | H9: 3.800535207 | I9: 9.332139707
B10: BM - Negative Reserve | C10: 0.2292696481 | D10: 0.08377013556 | E10: 0.07454007176 | F10: 0.01689183217 | G10: 0.1193314024 | H10: 0.4515632341 | I10: 0.19674247
B11: BM - Fast Reserve | C11: 1.077317235 | D11: 1.032533859 | E11: 0.8654224868 | F11: 0.8421493555 | G11: 0.9371455624 | H11: 0.9886269144 | I11: 0.9683374524
B12: BM - Response | C12: 0.9327718422 | D12: 1.364141943 | E12: 1.008451697 | F12: 1.544867362 | G12: 1.528793604 | H12: 2.663387033 | I12: 1.523228053
B13: BM - Minor Components | C13: 1.22021737 | D13: 1.149456683 | E13: 1.59459011 | F13: 1.52649363 | G13: 2.492471511 | H13: 2.754918395 | I13: 1.944227425
B18: Volume MW | C18: 2018-04-30 | D18: 2018-05-31 | E18: 2018-06-30 | F18: 2018-07-31 | G18: 2018-08-31 | H18: 2018-09-30 | I18: 2018-10-31 | J18: 2018-11-30 | K18: 2018-12-31 | L18: 2019-01-31 | M18: 2019-02-28 | N18: 2019-03-31
B19: BM - Energy balancing | C19: =SUMIF(#REF!,'BM total'!C$18,#REF!) ->  | D19: =SUMIF(#REF!,'BM total'!D$18,#REF!) ->  | E19: =SUMIF(#REF!,'BM total'!E$18,#REF!) ->  | F19: =SUMIF(#REF!,'BM total'!F$18,#REF!) ->  | G19: =SUMIF(#REF!,'BM total'!G$18,#REF!) ->  | H19: =SUMIF(#REF!,'BM total'!H$18,#REF!) ->  | I19: =SUMIF(#REF!,'BM total'!I$18,#REF!) -> 
B20: BM - Operating Reserve | C20: =SUMIF(#REF!,'BM total'!C$18,#REF!) ->  | D20: =SUMIF(#REF!,'BM total'!D$18,#REF!) ->  | E20: =SUMIF(#REF!,'BM total'!E$18,#REF!) ->  | F20: =SUMIF(#REF!,'BM total'!F$18,#REF!) ->  | G20: =SUMIF(#REF!,'BM total'!G$18,#REF!) ->  | H20: =SUMIF(#REF!,'BM total'!H$18,#REF!) ->  | I20: =SUMIF(#REF!,'BM total'!I$18,#REF!) -> 
B21: BM - STOR | C21: =SUMIF(#REF!,'BM total'!C$18,#REF!) ->  | D21: =SUMIF(#REF!,'BM total'!D$18,#REF!) ->  | E21: =SUMIF(#REF!,'BM total'!E$18,#REF!) ->  | F21: =SUMIF(#REF!,'BM total'!F$18,#REF!) ->  | G21: =SUMIF(#REF!,'BM total'!G$18,#REF!) ->  | H21: =SUMIF(#REF!,'BM total'!H$18,#REF!) ->  | I21: =SUMIF(#REF!,'BM total'!I$18,#REF!) -> 
B22: BM - Constrained Margin | C22: =SUMIF(#REF!,'BM total'!C$18,#REF!) ->  | D22: =SUMIF(#REF!,'BM total'!D$18,#REF!) ->  | E22: =SUMIF(#REF!,'BM total'!E$18,#REF!) ->  | F22: =SUMIF(#REF!,'BM total'!F$18,#REF!) ->  | G22: =SUMIF(#REF!,'BM total'!G$18,#REF!) ->  | H22: =SUMIF(#REF!,'BM total'!H$18,#REF!) ->  | I22: =SUMIF(#REF!,'BM total'!I$18,#REF!) -> 
B23: BM - Constraints E&W | C23: =SUMIF(#REF!,'BM total'!C$18,#REF!) ->  | D23: =SUMIF(#REF!,'BM total'!D$18,#REF!) ->  | E23: =SUMIF(#REF!,'BM total'!E$18,#REF!) ->  | F23: =SUMIF(#REF!,'BM total'!F$18,#REF!) ->  | G23: =SUMIF(#REF!,'BM total'!G$18,#REF!) ->  | H23: =SUMIF(#REF!,'BM total'!H$18,#REF!) ->  | I23: =SUMIF(#REF!,'BM total'!I$18,#REF!) -> 
B24: BM - Constraints Cheviot | C24: =SUMIF(#REF!,'BM total'!C$18,#REF!) ->  | D24: =SUMIF(#REF!,'BM total'!D$18,#REF!) ->  | E24: =SUMIF(#REF!,'BM total'!E$18,#REF!) ->  | F24: =SUMIF(#REF!,'BM total'!F$18,#REF!) ->  | G24: =SUMIF(#REF!,'BM total'!G$18,#REF!) ->  | H24: =SUMIF(#REF!,'BM total'!H$18,#REF!) ->  | I24: =SUMIF(#REF!,'BM total'!I$18,#REF!) -> 
B25: BM - Constraints Scotland | C25: =SUMIF(#REF!,'BM total'!C$18,#REF!) ->  | D25: =SUMIF(#REF!,'BM total'!D$18,#REF!) ->  | E25: =SUMIF(#REF!,'BM total'!E$18,#REF!) ->  | F25: =SUMIF(#REF!,'BM total'!F$18,#REF!) ->  | G25: =SUMIF(#REF!,'BM total'!G$18,#REF!) ->  | H25: =SUMIF(#REF!,'BM total'!H$18,#REF!) ->  | I25: =SUMIF(#REF!,'BM total'!I$18,#REF!) -> 
B26: BM - Negative Reserve | C26: =SUMIF(#REF!,'BM total'!C$18,#REF!) ->  | D26: =SUMIF(#REF!,'BM total'!D$18,#REF!) ->  | E26: =SUMIF(#REF!,'BM total'!E$18,#REF!) ->  | F26: =SUMIF(#REF!,'BM total'!F$18,#REF!) ->  | G26: =SUMIF(#REF!,'BM total'!G$18,#REF!) ->  | H26: =SUMIF(#REF!,'BM total'!H$18,#REF!) ->  | I26: =SUMIF(#REF!,'BM total'!I$18,#REF!) -> 
B27: BM - Fast Reserve | C27: =SUMIF(#REF!,'BM total'!C$18,#REF!) ->  | D27: =SUMIF(#REF!,'BM total'!D$18,#REF!) ->  | E27: =SUMIF(#REF!,'BM total'!E$18,#REF!) ->  | F27: =SUMIF(#REF!,'BM total'!F$18,#REF!) ->  | G27: =SUMIF(#REF!,'BM total'!G$18,#REF!) ->  | H27: =SUMIF(#REF!,'BM total'!H$18,#REF!) ->  | I27: =SUMIF(#REF!,'BM total'!I$18,#REF!) -> 
B28: BM - Response | C28: =SUMIF(#REF!,'BM total'!C$18,#REF!) ->  | D28: =SUMIF(#REF!,'BM total'!D$18,#REF!) ->  | E28: =SUMIF(#REF!,'BM total'!E$18,#REF!) ->  | F28: =SUMIF(#REF!,'BM total'!F$18,#REF!) ->  | G28: =SUMIF(#REF!,'BM total'!G$18,#REF!) ->  | H28: =SUMIF(#REF!,'BM total'!H$18,#REF!) ->  | I28: =SUMIF(#REF!,'BM total'!I$18,#REF!) -> 
B29: BM - Minor Components | C29: =SUMIF(#REF!,'BM total'!C$18,#REF!)+SUMIF(#REF!,'BM total'!C$18,#REF!) ->  | D29: =SUMIF(#REF!,'BM total'!D$18,#REF!)+SUMIF(#REF!,'BM total'!D$18,#REF!) ->  | E29: =SUMIF(#REF!,'BM total'!E$18,#REF!)+SUMIF(#REF!,'BM total'!E$18,#REF!) ->  | F29: =SUMIF(#REF!,'BM total'!F$18,#REF!)+SUMIF(#REF!,'BM total'!F$18,#REF!) ->  | G29: =SUMIF(#REF!,'BM total'!G$18,#REF!)+SUMIF(#REF!,'BM total'!G$18,#REF!) ->  | H29: =SUMIF(#REF!,'BM total'!H$18,#REF!)+SUMIF(#REF!,'BM total'!H$18,#REF!) ->  | I29: =SUMIF(#REF!,'BM total'!I$18,#REF!)+SUMIF(#REF!,'BM total'!I$18,#REF!) -> 

Sheet AS Total
B2: Cost £m | C2: 2018-04-01 | D2: 2018-05-01 | E2: 2018-06-01 | F2: 2018-07-01 | G2: 2018-08-01 | H2: 2018-09-01 | I2: 2018-10-01 | J2: 2018-11-01 | K2: 2018-12-01 | L2: 2019-01-01 | M2: 2019-02-01 | N2: 2019-03-01
B3: AS - Response | C3: 10.07901293 | D3: 10.84815488 | E3: 10.45198491 | F3: 8.99411011 | G3: 9.231356877 | H3: 8.706008928 | I3: 8.988390149
B4: AS - Fast Reserves | C4: 5.38432521 | D4: 5.43675165 | E4: 5.142471659 | F4: 6.71342682 | G4: 7.30701816 | H4: 6.52902469 | I4: 7.498404488
B5: AS - STOR | C5: 5.77316745 | D5: 6.76329286 | E5: 6.47372985 | F5: 7.10144219 | G5: 6.59750015 | H5: 5.43412206 | I5: 5.05554057
B6: AS - Other Reserves | C6: 0.78711943 | D6: 0.9197058 | E6: 0.82597977 | F6: 1.15896295 | G6: 1.1584881 | H6: 1.05517497 | I6: 1.322331023
B7: AS - Black Start | C7: 3.36605017 | D7: 3.670413224 | E7: 3.23176055 | F7: 3.06142822 | G7: 3.574906769 | H7: 3.44057473 | I7: 3.47276196
B8: AS - Reactive | C8: 6.46582811 | D8: 7.074151742 | E8: 7.36038081 | F8: 6.56190176 | G8: 6.696767338 | H8: 6.086499632 | I8: 7.00783291
B9: AS - Constraints | C9: 2.740013785 | D9: 0.9340882941 | E9: 3.770372235 | F9: 0.8420385837 | G9: 0.3912436641 | H9: 1.584411694 | I9: 13.22709796
B10: AS - SO-SO Costs | C10: 0.7970977069 | D10: 0.7138544657 | E10: 0.7192806959 | F10: 0.7742821306 | G10: 0.8023863726 | H10: 0.7807685894 | I10: 0.9104566739
B11: AS - Other Ancillary Cost | C11: 0.00022512 | D11: 0 | E11: 0 | F11: 0 | G11: 0 | H11: 0 | I11: 0
B12: AS - Outstanding Liabilities | C12: 0.2003513754 | D12: 0.2070297546 | E12: 0.2003513754 | F12: 0.2070297546 | G12: 0.2070297546 | H12: 0.2003513754 | I12: 0
B15: Cost £m | C15: 2018-04-01 | D15: 2018-05-01 | E15: 2018-06-01 | F15: 2018-07-01 | G15: 2018-08-01 | H15: 2018-09-01 | I15: 2018-10-01 | J15: 2018-11-01 | K15: 2018-12-01 | L15: 2019-01-01 | M15: 2019-02-01 | N15: 2019-03-01
B16: AS Mandatory Service | C16: 7.27621981 | D16: 8.32646985 | E16: 8.12783352 | F16: 7.88671428 | G16: 7.87845904 | H16: 7.28653101 | I16: 7.87567267
B17: AS Commercial Service | C17: 13.47886852 | D17: 11.92009533 | E17: 14.2419877 | F17: 13.9218148 | G17: 14.75174137 | H17: 14.54321763 | I17: 28.27074898
B18: AS Tendered Service | C18: 14.44385347 | D18: 15.75602143 | E18: 15.10237112 | F18: 13.0579116 | G18: 12.66399483 | H18: 11.78862991 | I18: 11.90561338
B19: AS Miscellaneous Costs | C19: 0.2005764954 | D19: 0.2070297546 | E19: 0.2003513754 | F19: 0.2070297546 | G19: 0.2070297546 | H19: 0.2003513754 | I19: 0
B41: Graph Title
B42: ="Ancillary Services Cost - "&TEXT(Main!E1,"mmm yyyy") -> Ancillary Services Cost - Oct 2018

Sheet Trades
B2: Volume MWh | C2: 2018-04-01 | D2: 2018-05-01 | E2: 2018-06-01 | F2: 2018-07-01 | G2: 2018-08-01 | H2: 2018-09-01 | I2: 2018-10-01 | J2: 2018-11-01 | K2: 2018-12-01 | L2: 2019-01-01 | M2: 2019-02-01 | N2: 2019-03-01 | P2: Reporting Month
B3: Buy Volume | C3: 22190 | D3: 73582.5 | E3: 139079.5 | F3: 119046.5 | G3: 126069 | H3: 176040.5 | I3: 215568 | P3: =HLOOKUP(Main!E1,Trades!$C$2:$N$5,4,FALSE) -> 502745
B4: Sell Volume | C4: 116182 | D4: 281479.5 | E4: 231333.4 | F4: 309497 | G4: 306662.2 | H4: 324343.6 | I4: 287177
B5: Abs value | C5: =SUM(C3:C4) -> 138372 | D5: =SUM(D3:D4) -> 355062 | E5: =SUM(E3:E4) -> 370412.9 | F5: =SUM(F3:F4) -> 428543.5 | G5: =SUM(G3:G4) -> 432731.2 | H5: =SUM(H3:H4) -> 500384.1 | I5: 502745
B8: Cost £ million | C8: 2018-04-01 | D8: 2018-05-01 | E8: 2018-06-01 | F8: 2018-07-01 | G8: 2018-08-01 | H8: 2018-09-01 | I8: 2018-10-01 | J8: 2018-11-01 | K8: 2018-12-01 | L8: 2019-01-01 | M8: 2019-02-01 | N8: 2019-03-01
B9: Buy Cost | C9: =0.237922+0.0651909 -> 0.3031129 | D9: =1.28180166+0.4176639 -> 1.69946556 | E9: 3.281732232 | F9: 2.45766925 | G9: 2.145867257 | H9: 1.223404665 | I9: 1.810448244
B10: Sell Cost | C10: 3.940875569 | D10: 10.9971745 | E10: 13.11942185 | F10: 14.19944532 | G10: 13.84651445 | H10: 19.30223593 | I10: 16.4348275

Sheet DSR
B2: Cost £m | C2: 2018-04-01 | D2: 2018-05-01 | E2: 2018-06-01 | F2: 2018-07-01 | G2: 2018-08-01 | H2: 2018-09-01 | I2: 2018-10-01 | J2: 2018-11-01 | K2: 2018-12-01 | L2: 2019-01-01 | M2: 2019-02-01 | N2: 2019-03-01
B3: NBM - Frequency Response | C3: 4.40115772 | D3: 4.50595366 | E3: 4.683355339 | F3: 5.4015875 | G3: 5.785020837 | H3: 5.489072408 | I3: 5.865991109 | O3: 0
B4: NBM - Short-term operating reserve (STOR) | C4: 3.86468119 | D4: 4.50236884 | E4: 4.25036079 | F4: 4.5548541 | G4: 4.09739113 | H4: 3.44260715 | I4: 2.95106463
B5: NBM - Fast Reserve | C5: 0.83989017 | D5: 0.92044845 | E5: 0.546494219 | F5: 0.63439845 | G5: 0.77291742 | H5: 1.14569505 | I5: 1.348867038
B8: Cost £m | C8: 2018-04-01 | D8: 2018-05-01 | E8: 2018-06-01 | F8: 2018-07-01 | G8: 2018-08-01 | H8: 2018-09-01 | I8: 2018-10-01 | J8: 2018-11-01 | K8: 2018-12-01 | L8: 2019-01-01 | M8: 2019-02-01 | N8: 2019-03-01
B9: AS - Non BM providers | C9: 9.10572908 | D9: 9.96056379 | E9: 9.519197318 | F9: 10.70577939 | G9: 10.69438991 | H9: 10.10581153 | I9: 10.19183156
B10: AS - BM providers | C10: 25.48978801 | D10: 25.68599466 | E10: 27.73748247 | F10: 23.07870624 | G10: 24.26289115 | H10: 22.71998018 | I10: 36.38052751
B11: AS - SO-SO providers | C11: 0.7970977069 | D11: 0.7138544657 | E11: 0.7192806959 | F11: 0.7742821306 | G11: 0.8023863726 | H11: 0.7807685894 | I11: 0.9104566739
B12: AS - Miscellaneous | C12: 0.2005764954 | D12: 0.2070297546 | E12: 0.2003513754 | F12: 0.2070297546 | G12: 0.2070297546 | H12: 0.2003513754 | I12: 0
B33: Graph Title
B34: ="AS Costs By Provider Type - "&TEXT(Main!E1,"mmm yyyy") -> AS Costs By Provider Type - Oct 2018

Sheet SO2SO
C1: =EOMONTH(C2,0) -> 2018-04-30 | D1: =EOMONTH(D2,0) -> 2018-05-31 | E1: 2018-06-30 | F1: 2018-07-31 | G1: 2018-08-31 | H1: 2018-09-30 | I1: 2018-10-31 | J1: 2018-11-30 | K1: 2018-12-31 | L1: 2019-01-31 | M1: 2019-02-28 | N1: 2019-03-31
B2: Cost £m | C2: 2018-04-30 | D2: 2018-05-31 | E2: 2018-06-30 | F2: 2018-07-31 | G2: 2018-08-31 | H2: 2018-09-30 | I2: 2018-10-31 | J2: 2018-11-30 | K2: 2018-12-31 | L2: 2019-01-31 | M2: 2019-02-28 | N2: 2019-03-31
B3: SO-SO Energy Trades | C3: 0 | D3: -0.047742323 | E3: -0.062446244 | F3: -0.059283338 | G3: -0.031695552 | H3: 0.084057459 | I3: 0.593017508
B4: SO-SO Margin | C4: 0 | D4: 0 | E4: 0 | F4: 0 | G4: 0 | H4: 0 | I4: 0
B5: SO-SO Constrained Margin | C5: 0 | D5: 0 | E5: 0 | F5: 0 | G5: 0 | H5: 0 | I5: 0
B6: SO-SO Footroom | C6: 0 | D6: 0 | E6: 0.00088663726 | F6: 0.004466558062 | G6: 0 | H6: 0.00284508 | I6: 0
B7: SO-SO Ramping | C7: 0 | D7: 0 | E7: 0 | F7: 0 | G7: 0 | H7: 0.001573053384 | I7: 0.03807516222
B8: SO-SO Invoked by External Parties | C8: 0 | D8: -0.1018718874 | E8: -0.2465900015 | F8: -0.07796885185 | G8: -0.212451819 | H8: -0.01873364749 | I8: -0.06413593754
B9: SO-SO Constaints | C9: 0 | D9: 0 | E9: 0 | F9: 0 | G9: 0 | H9: 0 | I9: 0
B10: AS - SO-SO Interconnector Capability (Commercial) | C10: 0.7970977069 | D10: 0.7138544657 | E10: 0.7192806959 | F10: 0.7742821306 | G10: 0.8023863726 | H10: 0.7807685894 | I10: 0.9104566739
C11: =SUM(C3:C10) -> 0.7970977069 | D11: =SUM(D3:D10) -> 0.5642402553 | E11: 0.4111310877 | F11: 0.6414964988 | G11: 0.5582390016 | H11: 0.8505105343 | I11: 1.477413407 | J11: 0 | K11: 0 | L11: 0 | M11: 0 | N11: 0
B12: Reporting Month
B13: =HLOOKUP(Main!E2,SO2SO!$C$2:$N$11,10,FALSE) -> 1.477413407

Sheet Energy Imbalance
B2: Cost | C2: 2018-04-01 | D2: 2018-05-01 | E2: 2018-06-01 | F2: 2018-07-01 | G2: 2018-08-01 | H2: 2018-09-01 | I2: 2018-10-01 | J2: 2018-11-01 | K2: 2018-12-01 | L2: 2019-01-01 | M2: 2019-02-01 | N2: 2019-03-01
B3: Energy Imbalance | C3: -5.678595773 | D3: -6.760679548 | E3: -2.810221268 | F3: -1.110751301 | G3: -3.902354275 | H3: -0.668759255 | I3: -0.043433795
B6: Volume MWh | C6: 2018-04-01 | D6: 2018-05-01 | E6: 2018-06-01 | F6: 2018-07-01 | G6: 2018-08-01 | H6: 2018-09-01 | I6: 2018-10-01 | J6: 2018-11-01 | K6: 2018-12-01 | L6: 2019-01-01 | M6: 2019-02-01 | N6: 2019-03-01
B7: Energy Imbalance | C7: ='Total categories'!C18 ->  | D7: ='Total categories'!D18 ->  | E7: ='Total categories'!E18 ->  | F7: ='Total categories'!F18 ->  | G7: ='Total categories'!G18 ->  | H7: ='Total categories'!H18 ->  | I7: ='Total categories'!I18 -> 

Sheet Operating Reserve
B2: Cost | C2: 2018-04-30 | D2: 2018-05-31 | E2: 2018-06-30 | F2: 2018-07-31 | G2: 2018-08-31 | H2: 2018-09-30 | I2: 2018-10-31 | J2: 2018-11-30 | K2: 2018-12-31 | L2: 2019-01-31 | M2: 2019-02-28 | N2: 2019-03-31
B3: BM - Operating Reserve | C3: 2.511075195 | D3: 2.132644636 | E3: 0.8596827296 | F3: 2.0434516 | G3: 2.31628933 | H3: 1.599050273 | I3: 4.032264678
B4: BM - Constrained Operating Reserve | C4: 1.476158122 | D4: 1.848030447 | E4: 2.278635405 | F4: 2.449887149 | G4: 1.606324578 | H4: 3.797432572 | I4: 3.429217601
B5: Trade - Operating Reserve | C5: 0.02804876497 | D5: 0.1854354073 | E5: 0.03670488447 | F5: 0.1789557617 | G5: 0.4591573918 | H5: -0.03071304085 | I5: 0.2970959236
B6: Trade - UTEV | C6: 0 | D6: 0 | E6: 0 | F6: 0 | G6: 0 | H6: 0 | I6: 0
B7: Trade - Constrained Operating Reserve | C7: 0.041523275 | D7: 0.218199033 | E7: 0.3088281284 | F7: 0.1159859841 | G7: 0.285310571 | H7: 0.1689963877 | I7: 0.2860323808
B8: SO-SO - Operating Reserve | C8: 0 | D8: 0 | E8: 0 | F8: 0 | G8: 0 | H8: 0 | I8: 0
B9: SO-SO - Constrained Operating Reserve | C9: 0 | D9: 0 | E9: 0 | F9: 0 | G9: 0 | H9: 0 | I9: 0
B12: Volume | C12: 2018-04-30 | D12: 2018-05-31 | E12: 2018-06-30 | F12: 2018-07-31 | G12: 2018-08-31 | H12: 2018-09-30 | I12: 2018-10-31 | J12: 2018-11-30 | K12: 2018-12-31 | L12: 2019-01-31 | M12: 2019-02-28 | N12: 2019-03-31
B13: BM - Operating Reserve | C13: =SUMIF(#REF!,'Operating Reserve'!C$12,#REF!) ->  | D13: =SUMIF(#REF!,'Operating Reserve'!D$12,#REF!) ->  | E13: =SUMIF(#REF!,'Operating Reserve'!E$12,#REF!) ->  | F13: =SUMIF(#REF!,'Operating Reserve'!F$12,#REF!) ->  | G13: =SUMIF(#REF!,'Operating Reserve'!G$12,#REF!) ->  | H13: =SUMIF(#REF!,'Operating Reserve'!H$12,#REF!) ->  | I13: =SUMIF(#REF!,'Operating Reserve'!I$12,#REF!) -> 
B14: BM - Constrained Operating Reserve | C14: =SUMIF(#REF!,'Operating Reserve'!C$12,#REF!) ->  | D14: =SUMIF(#REF!,'Operating Reserve'!D$12,#REF!) ->  | E14: =SUMIF(#REF!,'Operating Reserve'!E$12,#REF!) ->  | F14: =SUMIF(#REF!,'Operating Reserve'!F$12,#REF!) ->  | G14: =SUMIF(#REF!,'Operating Reserve'!G$12,#REF!) ->  | H14: =SUMIF(#REF!,'Operating Reserve'!H$12,#REF!) ->  | I14: =SUMIF(#REF!,'Operating Reserve'!I$12,#REF!) -> 
B15: Trade - Operating Reserve | C15: =SUMIF(#REF!,'Operating Reserve'!C$12,#REF!) ->  | D15: =SUMIF(#REF!,'Operating Reserve'!D$12,#REF!) ->  | E15: =SUMIF(#REF!,'Operating Reserve'!E$12,#REF!) ->  | F15: =SUMIF(#REF!,'Operating Reserve'!F$12,#REF!) ->  | G15: =SUMIF(#REF!,'Operating Reserve'!G$12,#REF!) ->  | H15: =SUMIF(#REF!,'Operating Reserve'!H$12,#REF!) ->  | I15: =SUMIF(#REF!,'Operating Reserve'!I$12,#REF!) -> 
B16: Trade - UTEV | C16: =SUMIF(#REF!,'Operating Reserve'!C$12,#REF!) ->  | D16: =SUMIF(#REF!,'Operating Reserve'!D$12,#REF!) ->  | E16: =SUMIF(#REF!,'Operating Reserve'!E$12,#REF!) ->  | F16: =SUMIF(#REF!,'Operating Reserve'!F$12,#REF!) ->  | G16: =SUMIF(#REF!,'Operating Reserve'!G$12,#REF!) ->  | H16: =SUMIF(#REF!,'Operating Reserve'!H$12,#REF!) ->  | I16: =SUMIF(#REF!,'Operating Reserve'!I$12,#REF!) -> 
B17: Trade - Constrained Operating Reserve | C17: =SUMIF(#REF!,'Operating Reserve'!C$12,#REF!) ->  | D17: =SUMIF(#REF!,'Operating Reserve'!D$12,#REF!) ->  | E17: =SUMIF(#REF!,'Operating Reserve'!E$12,#REF!) ->  | F17: =SUMIF(#REF!,'Operating Reserve'!F$12,#REF!) ->  | G17: =SUMIF(#REF!,'Operating Reserve'!G$12,#REF!) ->  | H17: =SUMIF(#REF!,'Operating Reserve'!H$12,#REF!) ->  | I17: =SUMIF(#REF!,'Operating Reserve'!I$12,#REF!) -> 
B18: SO-SO - Operating Reserve | C18: =SUMIF(#REF!,'Operating Reserve'!C$12,#REF!) ->  | D18: =SUMIF(#REF!,'Operating Reserve'!D$12,#REF!) ->  | E18: =SUMIF(#REF!,'Operating Reserve'!E$12,#REF!) ->  | F18: =SUMIF(#REF!,'Operating Reserve'!F$12,#REF!) ->  | G18: =SUMIF(#REF!,'Operating Reserve'!G$12,#REF!) ->  | H18: =SUMIF(#REF!,'Operating Reserve'!H$12,#REF!) ->  | I18: =SUMIF(#REF!,'Operating Reserve'!I$12,#REF!) -> 
B19: SO-SO - Constrained Operating Reserve | C19: =SUMIF(#REF!,'Operating Reserve'!C$12,#REF!) ->  | D19: =SUMIF(#REF!,'Operating Reserve'!D$12,#REF!) ->  | E19: =SUMIF(#REF!,'Operating Reserve'!E$12,#REF!) ->  | F19: =SUMIF(#REF!,'Operating Reserve'!F$12,#REF!) ->  | G19: =SUMIF(#REF!,'Operating Reserve'!G$12,#REF!) ->  | H19: =SUMIF(#REF!,'Operating Reserve'!H$12,#REF!) ->  | I19: =SUMIF(#REF!,'Operating Reserve'!I$12,#REF!) -> 

Sheet STOR
B2: Costs | C2: 2018-04-30 | D2: 2018-05-31 | E2: 2018-06-30 | F2: 2018-07-31 | G2: 2018-08-31 | H2: 2018-09-30 | I2: 2018-10-31 | J2: 2018-11-30 | K2: 2018-12-31 | L2: 2019-01-31 | M2: 2019-02-28 | N2: 2019-03-31
B3: BM - STOR | C3: 0.3228693417 | D3: 0.2755518486 | E3: 0.1754548433 | F3: 0.2664216513 | G3: 0.1899691236 | H3: 0.3247712665 | I3: 0.2854512396
B4: AS - BM STOR (Tendered) | C4: 1.90848626 | D4: 2.26092402 | E4: 2.22336906 | F4: 2.54658809 | G4: 2.50010902 | H4: 1.99151491 | I4: 2.10447594
B5: AS - NBM STOR availability (Tendered) | C5: 2.01702967 | D5: 2.54338869 | E5: 2.57327441 | F5: 2.60721927 | G5: 2.57122799 | H5: 2.33335986 | I5: 2.22953452
B6: AS - NBM STOR utilisation (Tendered) | C6: 1.84765152 | D6: 1.95898015 | E6: 1.67708638 | F6: 1.94763483 | G6: 1.52616314 | H6: 1.10924729 | I6: 0.72153011
B7: AS - BM Season/Term Reconciliation (Tendered) | C7: 0 | D7: 0 | E7: 0 | F7: 0 | G7: 0 | H7: 0 | I7: 0
B8: AS - NBM Season/Term Reconciliation (Tendered) | C8: 0 | D8: 0 | E8: 0 | F8: 0 | G8: 0 | H8: 0 | I8: 0
C9: =SUM(C3:C8) -> 6.096036792 | D9: =SUM(D3:D8) -> 7.038844709 | E9: 6.649184693 | F9: 7.367863841 | G9: 6.787469274 | H9: 5.758893326 | I9: 5.34099181 | J9: 0 | K9: 0 | L9: 0 | M9: 0 | N9: 0
C10: =SUM(C3:C4,C7) -> 2.231355602 | D10: =SUM(D3:D4,D7) -> 2.536475869 | E10: 2.398823903 | F10: 2.813009741 | G10: 2.690078144 | H10: 2.316286176 | I10: 2.38992718 | J10: 0 | K10: 0 | L10: 0 | M10: 0 | N10: 0
C11: =SUM(C5:C6,C8) -> 3.86468119 | D11: =SUM(D5:D6,D8) -> 4.50236884 | E11: 4.25036079 | F11: 4.5548541 | G11: 4.09739113 | H11: 3.44260715 | I11: 2.95106463 | J11: 0 | K11: 0 | L11: 0 | M11: 0 | N11: 0
B13: MWh | C13: 2018-04-01 | D13: 2018-05-01 | E13: 2018-06-01 | F13: 2018-07-01 | G13: 2018-08-01 | H13: 2018-09-01 | I13: 2018-10-01 | J13: 2018-11-01 | K13: 2018-12-01 | L13: 2019-01-01 | M13: 2019-02-01 | N13: 2019-03-01
B14: AS - NBM STOR utilisation (Tendered) | C14: 48983.042 | D14: 52527.169 | E14: 47632.441 | F14: 58800.014 | G14: 46902.69 | H14: 46902.688 | I14: 33517.139
B15: AS - BM STOR utilisation (Tendered) | C15: 4468.876 | D15: 4942.208 | E15: 3480.5 | F15: 4972.251 | G15: 8240.338 | H15: 8642.942 | I15: 5893.742
C16: =SUM(C14:C15) -> 53451.918 | D16: =SUM(D14:D15) -> 57469.377 | E16: 51112.941 | F16: 63772.265 | G16: =SUM(G14:G15) -> 55143.028 | H16: =SUM(H14:H15) -> 55545.63 | I16: =SUM(I14:I15) -> 39410.881 | J16: 0 | K16: 0 | L16: 0 | M16: 0 | N16: 0
B17: Reporting Month
A18: Total | B18: 5.34099181
A19: BM | B19: =HLOOKUP(Main!$E$2,STOR!$C$2:$N$11,9,FALSE) -> 2.38992718
A20: Non-BM | B20: =HLOOKUP(Main!$E$2,STOR!$C$2:$N$11,10,FALSE) -> 2.95106463
A21: Total Vol | B21: =HLOOKUP(Main!$E$1,STOR!$C$13:$N$16,4,FALSE) -> 39410.881
C24: 2018-04-01 | D24: 2018-05-01 | E24: 2018-06-01 | F24: 2018-07-01 | G24: 2018-08-01
B25: BM STOR (July MBSS) | C25: 1523.353 | D25: 802.36 | E25: 856.44 | F25: 1569.425
B26: BM STOR | C26: 4612.492 | D26: 4633.733 | E26: 3483.667 | F26: 5105.001 | G26: 4767.332
B27: AS BM STOR | C27: 4468.876 | D27: 4942.208 | E27: 3480.5 | F27: 4972.251 | G27: 8240.338

Sheet Constraints
B2: Costs | C2: 2018-04-01 | D2: 2018-05-01 | E2: 2018-06-01 | F2: 2018-07-01 | G2: 2018-08-01 | H2: 2018-09-01 | I2: 2018-10-01 | J2: 2018-11-01 | K2: 2018-12-01 | L2: 2019-01-01 | M2: 2019-02-01 | N2: 2019-03-01
B3: AS - BM Intertrip capability (Mandatory - CAP76) | C3: 0.1120464 | D3: 0.11578128 | E3: 0.1120464 | F3: 0.11578128 | G3: 0.11578128 | H3: 0.1120464 | I3: 0.11578128
B4: AS - BM Intertrip capability (Commercial) | C4: 0.01612048464 | D4: 0.01665783413 | E4: 0.01612048464 | F4: 0.01665783413 | G4: 0.01665783413 | H4: 0.01612048464 | I4: 0.01665783413
B5: AS - BM Intertrip Arming (Commercial) | C5: 0.01638527 | D5: 0.27202451 | E5: 3.37651916 | F5: 0.0607744696 | G5: 0.14374889 | H5: 0.19997749 | I5: 0.13619389
B6: AS - Interconnector Intertrip Arming (Commercial) | C6: 0 | D6: 0 | E6: 0 | F6: 0.648825 | G6: 0 | H6: 0.010025 | I6: 0
B7: AS - BM Intertrip - trip (Mandatory and Commercial) | C7: 0 | D7: 0 | E7: 0 | F7: 0 | G7: 0 | H7: 0 | I7: 0
B8: AS - BM Constraints | C8: 2.59546163 | D8: 0.52962467 | E8: 0.2656861905 | F8: 0 | G8: 0.11505566 | H8: 1.246242319 | I8: 12.95846496
B11: Costs (£m) | C11: 2018-04-01 | D11: 2018-05-01 | E11: 2018-06-01 | F11: 2018-07-01 | G11: 2018-08-01 | H11: 2018-09-01 | I11: 2018-10-01 | J11: 2018-11-01 | K11: 2018-12-01 | L11: 2019-01-01 | M11: 2019-02-01 | N11: 2019-03-01
B12: BM - Transmission | C12: 17.31932316 | D12: 11.61068386 | E12: 31.11098891 | F12: 22.02485966 | G12: 18.85282451 | H12: 77.82732456 | I12: 68.60590147
B13: Trades - Transmission | C13: 0.3248186269 | D13: 0.631701251 | E13: 3.435066333 | F13: 2.686199714 | G13: 0.9017014797 | H13: 3.588676964 | I13: 3.745111233
B14: BM - Voltage | C14: 0.3147085857 | D14: 0.6046641965 | E14: 0.326904414 | F14: 0.1975358526 | G14: 0.4587922838 | H14: 1.280998874 | I14: 1.45647224
B15: Trades - Voltage | C15: 0.2014910466 | D15: 1.219693654 | E15: 2.439973395 | F15: 1.924859552 | G15: 1.231607152 | H15: 0.9838269585 | I15: 0.6283148784
B16: BM - ROCOF | C16: 1.085192092 | D16: 1.370133501 | E16: 0.2358635741 | F16: 0.9094201287 | G16: 0.9252092146 | H16: 1.251662699 | I16: 3.104247537
B17: Trades - ROCOF | C17: 3.452459091 | D17: 8.47121437 | E17: 9.877713671 | F17: 11.21491756 | G17: 12.78372739 | H17: 15.66600034 | I17: 13.26774263
B18: SO-SO - Constraints | C18: 0 | D18: 0 | E18: 0 | F18: 0 | G18: 0 | H18: 0 | I18: 0
B19: AS Costs | C19: 2.740013785 | D19: 0.9340882941 | E19: 3.770372235 | F19: 0.8420385837 | G19: 0.3912436641 | H19: 1.584411694 | I19: 13.22709796
B22: Absolute Volume MWh | C22: 2018-04-01 | D22: 2018-05-01 | E22: 2018-06-01 | F22: 2018-07-01 | G22: 2018-08-01 | H22: 2018-09-01 | I22: 2018-10-01 | J22: 2018-11-01 | K22: 2018-12-01 | L22: 2019-01-01 | M22: 2019-02-01 | N22: 2019-03-01
B23: BM - Transmission | C23: 223524.634 | D23: 169041.237 | E23: 490529.9 | F23: 240083.216 | G23: 188414.662 | H23: 697941.339 | I23: 575838.32
B24: Trades - Transmission | C24: 2867 | D24: 6502.5 | E24: 39289.4 | F24: 67527 | G24: 14720.2 | H24: 28117.6 | I24: 59765
B25: BM - Voltage | C25: 28569.236 | D25: 38818.622 | E25: 32251.668 | F25: 9742.691 | G25: 30701.911 | H25: 93318 | I25: 135939.057
B26: Trades - Voltage | C26: 20584 | D26: 70647.5 | E26: 108480 | F26: 100644.5 | G26: 98325 | H26: 144325.5 | I26: 129229
B27: BM - ROCOF | C27: 31162.47 | D27: 29151.454 | E27: 14146.085 | F27: 40904.042 | G27: 22166.055 | H27: 61303.894 | I27: 79615.595
B28: Trades - ROCOF | C28: 31162.47 | D28: 29151.454 | E28: 14146.085 | F28: 40904.042 | G28: 22166.055 | H28: 61303.894 | I28: 79615.595
B29: SO-SO - Constraints | C29: 101715 | D29: 215551 | E29: 194531.5 | F29: 226187 | G29: 273122 | H29: 307416 | I29: 256073.5
B34: Reporting Month
B35: AS Costs
B53: Graph Title
B54: ="Constraints - "&TEXT(Main!E1,"mmm yyyy") -> Constraints - Oct 2018
M62: `

Sheet Negative Reserves
B2: Costs | C2: 2018-04-30 | D2: 2018-05-31 | E2: 2018-06-30 | F2: 2018-07-31 | G2: 2018-08-31 | H2: 2018-09-30 | I2: 2018-10-31 | J2: 2018-11-30 | K2: 2018-12-31 | L2: 2019-01-31 | M2: 2019-02-28 | N2: 2019-03-31
B3: BM - Negative reserve | C3: 0.2292696481 | D3: 0.08377013556 | E3: 0.07454007176 | F3: 0.01689183217 | G3: 0.1193314024 | H3: 0.4515632341 | I3: 0.19674247
B4: Trade - Negative reserve | C4: 0.190764063 | D4: 1.973701759 | E4: 0.3323394199 | F4: 0.551170455 | G4: 0.2765523921 | H4: 0.109275164 | I4: 0.01520019462
B5: SO-SO - Negative reserve | C5: 0 | D5: 0 | E5: 0.00088663726 | F5: 0.004466558062 | G5: 0 | H5: 0.00284508 | I5: 0
B9: Volumes | C9: 2018-04-30 | D9: 2018-05-31 | E9: 2018-06-30 | F9: 2018-07-31 | G9: 2018-08-31 | H9: 2018-09-30 | I9: 2018-10-31 | J9: 2018-11-30 | K9: 2018-12-31 | L9: 2019-01-31 | M9: 2019-02-28 | N9: 2019-03-31
B10: BM - Negative Reserve | C10: =SUMIF(#REF!,'Negative Reserves'!C$9,#REF!) ->  | D10: =SUMIF(#REF!,'Negative Reserves'!D$9,#REF!) ->  | E10: =SUMIF(#REF!,'Negative Reserves'!E$9,#REF!) ->  | F10: =SUMIF(#REF!,'Negative Reserves'!F$9,#REF!) ->  | G10: =SUMIF(#REF!,'Negative Reserves'!G$9,#REF!) ->  | H10: =SUMIF(#REF!,'Negative Reserves'!H$9,#REF!) ->  | I10: =SUMIF(#REF!,'Negative Reserves'!I$9,#REF!) -> 
B11: Trade - Negative Reserve | C11: =SUMIF(#REF!,'Negative Reserves'!C$9,#REF!) ->  | D11: =SUMIF(#REF!,'Negative Reserves'!D$9,#REF!) ->  | E11: =SUMIF(#REF!,'Negative Reserves'!E$9,#REF!) ->  | F11: =SUMIF(#REF!,'Negative Reserves'!F$9,#REF!) ->  | G11: =SUMIF(#REF!,'Negative Reserves'!G$9,#REF!) ->  | H11: =SUMIF(#REF!,'Negative Reserves'!H$9,#REF!) ->  | I11: =SUMIF(#REF!,'Negative Reserves'!I$9,#REF!) -> 
B12: SO-SO - Negative Reserve | C12: =SUMIF(#REF!,'Negative Reserves'!C$9,#REF!) ->  | D12: =SUMIF(#REF!,'Negative Reserves'!D$9,#REF!) ->  | E12: =SUMIF(#REF!,'Negative Reserves'!E$9,#REF!) ->  | F12: =SUMIF(#REF!,'Negative Reserves'!F$9,#REF!) ->  | G12: =SUMIF(#REF!,'Negative Reserves'!G$9,#REF!) ->  | H12: =SUMIF(#REF!,'Negative Reserves'!H$9,#REF!) ->  | I12: =SUMIF(#REF!,'Negative Reserves'!I$9,#REF!) -> 
C13: =SUM(C10:C12) ->  | D13: =SUM(D10:D12) ->  | J13: 0 | K13: 0 | L13: 0 | M13: 0 | N13: 0
B16: Reporting Month
B17: Volume | C17: =HLOOKUP(Main!E2,'Negative Reserves'!C9:N13,5,FALSE) -> 

Sheet Fast Reserve
B2: Costs | C2: 2018-04-30 | D2: 2018-05-31 | E2: 2018-06-30 | F2: 2018-07-31 | G2: 2018-08-31 | H2: 2018-09-30 | I2: 2018-10-31 | J2: 2018-11-30 | K2: 2018-12-31 | L2: 2019-01-31 | M2: 2019-02-28 | N2: 2019-03-31
B3: BM - Fast Reserves | C3: 1.077317235 | D3: 1.032533859 | E3: 0.8654224868 | F3: 0.8421493555 | G3: 0.9371455624 | H3: 0.9886269144 | I3: 0.9683374524
B4: Hydro Spin Gen No LF (Commercial) | C4: 4.04547504 | D4: 4.0014732 | E4: 4.10097744 | F4: 5.56469837 | G4: 6.02551074 | H4: 4.97916664 | I4: 5.63412745
B5: BM Optional Fast Reserve (Commercial) | C5: 0 | D5: 0 | E5: 0 | F5: 0 | G5: 0 | H5: 0 | I5: 0
B6: NBM Optional Fast Reserve Availability (Commercial) | C6: 0.03255 | D6: 0.01505 | E6: 0.00525 | F6: 0.01365 | G6: 0.0091 | H6: 0.01311911 | I6: 0.010062078
B7: NBM Optional Fast Reserve Utilisation (Commercial) | C7: 0.15678468 | D7: 0.06316848 | E7: 0.02323183 | F7: 0.0515296 | G7: 0.12183465 | H7: 0.53028802 | I7: 0.6605551
B8: BM Firm Fast Reserve (Tendered) | C8: 0.49896 | D8: 0.51483 | E8: 0.495 | F8: 0.51433 | G8: 0.50859 | H8: 0.404163 | I8: 0.51541
B9: NBM Firm Fast Reserve Avail + Nom (Tendered) | C9: 0.374325 | D9: 0.3868025 | E9: 0.374325 | F9: 0.3868375 | G9: 0.3868025 | H9: 0.428757 | I9: 0.3868025
B10: NBM Firm Fast Reserve Utilisation (Tendered) | C10: 0.27623049 | D10: 0.45542747 | E10: 0.143687389 | F10: 0.18238135 | G10: 0.25518027 | H10: 0.17353092 | I10: 0.29144736
B11: Total BM | C11: =SUM(C3:C5,C8) -> 5.621752275 | D11: =SUM(D3:D5,D8) -> 5.548837059 | E11: 5.461399927 | F11: 6.921177725 | G11: 7.471246302 | H11: 6.371956554 | I11: 7.117874902 | J11: 0 | K11: 0 | L11: 0 | M11: 0 | N11: 0
B12: Total Non-BM | C12: =SUM(C6:C7,C9:C10) -> 0.83989017 | D12: =SUM(D6:D7,D9:D10) -> 0.92044845 | E12: 0.546494219 | F12: 0.63439845 | G12: 0.77291742 | H12: 1.14569505 | I12: 1.348867038 | J12: 0 | K12: 0 | L12: 0 | M12: 0 | N12: 0
B16: Volume | C16: 2018-04-01 | D16: 2018-05-01 | E16: 2018-06-01 | F16: 2018-07-01 | G16: 2018-08-01 | H16: 2018-09-01 | I16: 2018-10-01 | J16: 2018-11-01 | K16: 2018-12-01 | L16: 2019-01-01 | M16: 2019-02-01 | N16: 2019-03-01
B17: AS - NBM Firm Fast Reserve availability + nomination (Tendered) | C17: 63000 | D17: 65100 | E17: 46620 | F17: 65100 | G17: 65100 | H17: 78552 | I17: 65100
B18: AS - BM Firm Fast Reserve availability (Tendered) | C18: 90720 | D18: 93780 | E18: 91080 | F18: 93960 | G18: 93960 | H18: 121800 | I18: 94140
B19: AS - BM Hydro Spin Gen No LF (Commercial) | C19: 159712.75 | D19: 159528.13 | E19: 164254.81 | F19: 221511.75 | G19: 237260.01 | H19: 200063.52 | I19: 224153.54
B23: Reporting Month
B24: BM | C24: =HLOOKUP(Main!$E$2,'Fast Reserve'!$C$2:$N$12,10,FALSE) -> 7.117874902
B25: Non-BM | C25: =HLOOKUP(Main!$E$2,'Fast Reserve'!$C$2:$N$12,11,FALSE) -> 1.348867038

Sheet Response
B2: Costs | C2: 2018-04-30 | D2: 2018-05-31 | E2: 2018-06-30 | F2: 2018-07-31 | G2: 2018-08-31 | H2: 2018-09-30 | I2: 2018-10-31 | J2: 2018-11-30 | K2: 2018-12-31 | L2: 2019-01-31 | M2: 2019-02-28 | N2: 2019-03-31
B3: BM - Response | C3: 0.9327718422 | D3: 1.364141943 | E3: 1.008451697 | F3: 1.544867362 | G3: 1.528793604 | H3: 2.663387033 | I3: 1.523228053
B4: BM Generator Response (Mandatory) | C4: 1.01655202 | D4: 1.31637577 | E4: 0.84783121 | F4: 1.42311602 | G4: 1.40224866 | H4: 1.35395853 | I4: 1.38462119
B5: BM Generator Response (Commercial) | C5: 0.00363322 | D5: 0.00241585 | E5: 0.00333822 | F5: 0.02219208 | G5: 0.00344541 | H5: 0.00166014 | I5: 0.00120824
B6: BM Generator Response Energy (Mandatory) | C6: -0.01754959 | D6: 0.05288763 | E6: 0.0118744 | F6: 0.00273159 | G6: -0.13242075 | H6: -0.14906639 | I6: -0.23228615
B7: BM Generator Response Energy (Commercial) | C7: 0.02439103 | D7: 0.01310728 | E7: 0.02214746 | F7: 0.02684583 | G7: 0.00892743 | H7: 0.01422117 | I7: 0.01336365
B8: Hydro Spin Gen with LF | C8: 0.049335 | D8: 0.0587015 | E8: 0.03928925 | F8: 0.08149383 | G8: 0.050557 | H8: 0.042614 | I8: 0.050193
B9: Hydro Pump deload | C9: 0.22949578 | D9: 0.40629952 | E9: 0.32227658 | F9: 0.2165457 | G9: 0.28260043 | H9: 0.12800391 | I9: 0.03500458
B10: BM Enhanced Frequency Response (Commercial) | C10: 0 | D10: 0 | E10: 0 | F10: 0 | G10: 0 | H10: 0 | I10: 0
B11: Interconnector Response (Commercial) | C11: 0 | D11: 0 | E11: 0 | F11: 0 | G11: 0 | H11: 0 | I11: 0
B12: NBM Enhanced Frequency Response (Commercial) | C12: 0.77432571 | D12: 0.83880858 | E12: 1.01148972 | F12: 1.58944621 | G12: 1.77099797 | H12: 1.71708101 | I12: 1.78691893
B13: NBM Demand Side Response (Commerical) | C13: 0.55342713 | D13: 0.48931668 | E13: 0.4997996192 | F13: 0.71205014 | G13: 0.9428175965 | H13: 0.674178928 | I13: 0.8406279788
B14: BM Other Response (Commercial) | C14: 0 | D14: 0 | E14: 0 | F14: 0 | G14: 0 | H14: 0 | I14: 0
B15: NBM Other Response (Commercial) | C15: 0.11356678 | D15: 0.11279195 | E15: 0.1067914 | F15: 0.11194775 | G15: 0.11719587 | H15: 0.11870783 | I15: 0.12294296
B16: BM FFR (Tendered) | C16: 3.531003 | D16: 3.605442 | E16: 3.617105 | F16: 1.24725 | G16: 1.2375 | H16: 1.205 | I16: 1.251
B17: BM FFR Response Energy (Tendered) | C17: 0.84099475 | D17: 0.88697167 | E17: 0.90476745 | F17: 0.57234756 | G17: 0.59347786 | H17: 0.62054516 | I17: 0.61929453
B18: NBM FFR (Tendered) | C18: 2.9598381 | D18: 3.06503645 | E18: 3.0652746 | F18: 2.9881434 | G18: 2.9540094 | H18: 2.97910464 | I18: 3.11550124
C21: 2018-04-01 | F21: 2018-05-01 | I21: 2018-06-01 | L21: 2018-07-01 | O21: 2018-08-01 | R21: 2018-09-01 | U21: 2018-10-01 | X21: 2018-11-01 | AA21: 2018-12-01 | AD21: 2019-01-01 | AG21: 2019-02-01 | AJ21: 2019-03-01
B22: Holding volumes | C22: P | D22: S | E22: H | F22: P | G22: S | H22: H | I22: P | J22: S | K22: H | L22: P | M22: S | N22: H | O22: P | P22: S | Q22: H | R22: P | S22: S | T22: H | U22: P | V22: S | W22: H | X22: P | Y22: S | Z22: H | AA22: P | AB22: S | AC22: H | AD22: P | AE22: S | AF22: H | AG22: P | AH22: S | AI22: H | AJ22: P | AK22: S | AL22: H
B23: BM Generator Response (Mandatory) | F23: 150171.685 | G23: 91998.91 | H23: 233097.589 | I23: 104561.591 | J23: 57607.064 | K23: 144299.335 | L23: 151506.822 | M23: 97958.865 | N23: 257625.087 | O23: 128375.481 | P23: 80725.917 | Q23: 274727.754 | R23: 135027.899 | S23: 73518.506 | T23: 292607.74 | U23: 126997.645 | V23: 70855.068 | W23: 305858.333
B24: Hydro Spin Gen with LF | C24: 0 | D24: 1687.68 | E24: 0 | F24: 0 | G24: 2044.17 | H24: 0 | I24: 0 | J24: 1344.87 | K24: 0 | L24: 0 | M24: 3021.29 | N24: 0 | O24: 0 | P24: 1670.86 | Q24: 0 | R24: 0 | S24: 1429.84 | T24: 0 | U24: 0 | V24: 1716.98 | W24: 0
B25: Hydro Pump deload | C25: 29234.1 | D25: 36194.6 | F25: 49249.2 | G25: 60975.2 | I25: 42529.2 | J25: 52655.2 | L25: 27768.3 | M25: 34379.8 | O25: 35523.3 | P25: 44088.2 | R25: 15567.3 | S25: 19273.8 | U25: 4323.9 | V25: 5353.4
B26: BM Enhanced Frequency Response (Commercial) | C26: 0 | D26: 0 | E26: 0 | F26: 0 | G26: 0 | H26: 0 | I26: 0 | J26: 0 | K26: 0 | L26: 0 | M26: 0 | N26: 0 | O26: 0 | P26: 0 | Q26: 0 | R26: 0 | S26: 0 | T26: 0 | U26: 0 | V26: 0 | W26: 0
B27: Interconnector Response (Commercial) | C27: 0 | D27: 0 | E27: 0 | F27: 0 | G27: 0 | H27: 0 | I27: 0 | J27: 0 | K27: 0 | L27: 0 | M27: 0 | N27: 0 | O27: 0 | P27: 0 | Q27: 0 | R27: 0 | S27: 0 | T27: 0 | U27: 0 | V27: 0 | W27: 0 | X27: 0 | Y27: 0 | Z27: 0 | AA27: 0 | AB27: 0 | AC27: 0 | AD27: 0 | AE27: 0 | AF27: 0 | AG27: 0 | AH27: 0 | AI27: 0 | AJ27: 0 | AK27: 0 | AL27: 0
B28: NBM Enhanced Frequency Response (Commercial) | C28: 0 | D28: 0 | E28: 0 | F28: 0 | G28: 0 | H28: 0 | I28: 0 | J28: 0 | K28: 0 | L28: 0 | M28: 0 | N28: 0 | O28: 0 | P28: 0 | Q28: 0 | R28: 0 | S28: 0 | T28: 0 | U28: 0 | V28: 0 | W28: 0 | X28: 0 | Y28: 0 | Z28: 0 | AA28: 0 | AB28: 0 | AC28: 0 | AD28: 0 | AE28: 0 | AF28: 0 | AG28: 0 | AH28: 0 | AI28: 0 | AJ28: 0 | AK28: 0 | AL28: 0
B29: NBM Demand Side Response (Commerical) | C29: 0 | D29: 85038.6067 | E29: 6712 | F29: 0 | G29: 76509.52854 | H29: 4152 | I29: 0 | J29: 82753.24852 | K29: 664 | L29: 0 | M29: 114383.8889 | N29: 80 | O29: 0 | P29: 148804.1525 | Q29: 0 | R29: 0 | S29: 110141.674 | T29: 464 | U29: 0 | V29: 135143.2625 | W29: 5870
B30: BM Other Response (Commercial) | C30: 0 | D30: 0 | E30: 0 | F30: 0 | G30: 0 | H30: 0 | I30: 0 | J30: 0 | K30: 0 | L30: 0 | M30: 0 | N30: 0 | O30: 0 | P30: 0 | Q30: 0 | R30: 0 | S30: 0 | T30: 0 | U30: 0 | V30: 0 | W30: 0
B31: BM FFR (Tendered) | C31: 225922 | D31: 190672 | E31: 111760 | F31: 235456 | G31: 198860.8 | H31: 120956 | I31: 228498 | J31: 192779 | K31: 100660 | L31: 82286 | M31: 53050.6 | N31: 0 | O31: 84286 | P31: 53050.6 | Q31: 0 | R31: 81430 | S31: 51253 | T31: 0 | U31: 84541 | V31: 53211.1 | W31: 0
B32: NBM FFR (Tendered) | C32: 83197.56 | D32: 250394.4725 | E32: 102007.56 | F32: 125423.58 | G32: 305355.53 | H32: 122273.58 | I32: 137731 | J32: 336120 | K32: 143881 | L32: 121842 | M32: 353327.28 | N32: 111977 | O32: 149093.675 | P32: 341976.675 | Q32: 126806.675 | R32: 143007.56 | S32: 308516.56 | T32: 112847.19 | U32: 126083.13 | V32: 280068.13 | W32: 96794.13
C33: =SUM(C23:C32) -> 338353.66 | D33: =SUM(D23:D32) -> 563987.3592 | E33: 220479.56 | F33: 560300.465 | G33: 735744.1385 | H33: 480479.169 | I33: 513319.791 | J33: 723259.3825 | K33: 389504.335 | L33: 383403.122 | M33: 656121.7239 | N33: 369682.087 | O33: 397278.456 | P33: 670316.4045 | Q33: 401534.429 | R33: 375032.759 | S33: 564133.38 | T33: 405918.93 | U33: 341945.675 | V33: 546347.9405 | W33: 408522.463 | X33: 0 | Y33: 0 | Z33: 0 | AA33: 0 | AB33: 0 | AC33: 0 | AD33: 0 | AE33: 0 | AF33: 0 | AG33: 0 | AH33: 0 | AI33: 0 | AJ33: 0 | AK33: 0 | AL33: 0
C35: 2018-04-01 | F35: 2018-05-01 | I35: 2018-06-01 | L35: 2018-07-01 | O35: 2018-08-01 | R35: 2018-09-01 | U35: 2018-10-01 | X35: 2018-11-01 | AA35: 2018-12-01 | AD35: 2019-01-01 | AG35: 2019-02-01 | AJ35: 2019-03-01
B36: Holding volumes (TWh) | C36: P | D36: S | E36: H | F36: P | G36: S | H36: H | I36: P | J36: S | K36: H | L36: P | M36: S | N36: H | O36: P | P36: S | Q36: H | R36: P | S36: S | T36: H | U36: P | V36: S | W36: H | X36: P | Y36: S | Z36: H | AA36: P | AB36: S | AC36: H | AD36: P | AE36: S | AF36: H | AG36: P | AH36: S | AI36: H | AJ36: P | AK36: S | AL36: H
B37: BM Generator Response (Mandatory) | C37: =C23/1000 -> 0 | D37: 0 | E37: 0 | F37: =F23/1000 -> 150.171685 | G37: 91.99891 | H37: 233.097589 | I37: =I23/1000 -> 104.561591 | J37: 57.607064 | K37: 144.299335 | L37: 151.506822 | M37: 97.958865 | N37: 257.625087 | O37: =O23/1000 -> 128.375481 | P37: 80.725917 | Q37: 274.727754 | R37: =R23/1000 -> 135.027899 | S37: 73.518506 | T37: 292.60774 | U37: =U23/1000 -> 126.997645 | V37: 70.855068 | W37: 305.858333
B38: Hydro Spin Gen with LF | C38: 0 | D38: 1.68768 | E38: 0 | F38: =F24/1000 -> 0 | G38: 2.04417 | H38: 0 | I38: =I24/1000 -> 0 | J38: 1.34487 | K38: 0 | L38: 0 | M38: 3.02129 | N38: 0 | O38: =O24/1000 -> 0 | P38: 1.67086 | Q38: 0 | R38: =R24/1000 -> 0 | S38: 1.42984 | T38: 0 | U38: =U24/1000 -> 0 | V38: 1.71698 | W38: 0
B39: Hydro Pump deload | C39: 29.2341 | D39: 36.1946 | E39: 0 | F39: =F25/1000 -> 49.2492 | G39: 60.9752 | H39: 0 | I39: =I25/1000 -> 42.5292 | J39: 52.6552 | K39: 0 | L39: 27.7683 | M39: 34.3798 | N39: 0 | O39: =O25/1000 -> 35.5233 | P39: 44.0882 | Q39: 0 | R39: =R25/1000 -> 15.5673 | S39: 19.2738 | T39: 0 | U39: =U25/1000 -> 4.3239 | V39: 5.3534 | W39: 0
B40: BM Enhanced Frequency Response (Commercial) | C40: 0 | D40: 0 | E40: 0 | F40: =F26/1000 -> 0 | G40: 0 | H40: 0 | I40: =I26/1000 -> 0 | J40: 0 | K40: 0 | L40: 0 | M40: 0 | N40: 0 | O40: =O26/1000 -> 0 | P40: 0 | Q40: 0 | R40: =R26/1000 -> 0 | S40: 0 | T40: 0 | U40: =U26/1000 -> 0 | V40: 0 | W40: 0
B41: Interconnector Response (Commercial) | C41: 0 | D41: 0 | E41: 0 | F41: =F27/1000 -> 0 | G41: 0 | H41: 0 | I41: =I27/1000 -> 0 | J41: 0 | K41: 0 | L41: 0 | M41: 0 | N41: 0 | O41: =O27/1000 -> 0 | P41: 0 | Q41: 0 | R41: =R27/1000 -> 0 | S41: 0 | T41: 0 | U41: =U27/1000 -> 0 | V41: 0 | W41: 0
B42: NBM Enhanced Frequency Response (Commercial) | C42: 0 | D42: 0 | E42: 0 | F42: =F28/1000 -> 0 | G42: 0 | H42: 0 | I42: =I28/1000 -> 0 | J42: 0 | K42: 0 | L42: 0 | M42: 0 | N42: 0 | O42: =O28/1000 -> 0 | P42: 0 | Q42: 0 | R42: =R28/1000 -> 0 | S42: 0 | T42: 0 | U42: =U28/1000 -> 0 | V42: 0 | W42: 0
B43: NBM Demand Side Response (Commerical) | C43: 0 | D43: 85.0386067 | E43: 6.712 | F43: =F29/1000 -> 0 | G43: 76.50952854 | H43: 4.152 | I43: =I29/1000 -> 0 | J43: 82.75324852 | K43: 0.664 | L43: 0 | M43: 114.3838889 | N43: 0.08 | O43: =O29/1000 -> 0 | P43: 148.8041525 | Q43: 0 | R43: =R29/1000 -> 0 | S43: 110.141674 | T43: 0.464 | U43: =U29/1000 -> 0 | V43: 135.1432625 | W43: 5.87
B44: BM Other Response (Commercial) | C44: 0 | D44: 0 | E44: 0 | F44: =F30/1000 -> 0 | G44: 0 | H44: 0 | I44: =I30/1000 -> 0 | J44: 0 | K44: 0 | L44: 0 | M44: 0 | N44: 0 | O44: =O30/1000 -> 0 | P44: 0 | Q44: 0 | R44: =R30/1000 -> 0 | S44: 0 | T44: 0 | U44: =U30/1000 -> 0 | V44: 0 | W44: 0
B45: BM FFR (Tendered) | C45: 225.922 | D45: 190.672 | E45: 111.76 | F45: =F31/1000 -> 235.456 | G45: 198.8608 | H45: 120.956 | I45: =I31/1000 -> 228.498 | J45: 192.779 | K45: 100.66 | L45: 82.286 | M45: 53.0506 | N45: 0 | O45: =O31/1000 -> 84.286 | P45: 53.0506 | Q45: 0 | R45: =R31/1000 -> 81.43 | S45: 51.253 | T45: 0 | U45: =U31/1000 -> 84.541 | V45: 53.2111 | W45: 0
B46: NBM FFR (Tendered) | C46: 83.19756 | D46: 250.3944725 | E46: 102.00756 | F46: =F32/1000 -> 125.42358 | G46: 305.35553 | H46: 122.27358 | I46: =I32/1000 -> 137.731 | J46: 336.12 | K46: 143.881 | L46: 121.842 | M46: 353.32728 | N46: 111.977 | O46: =O32/1000 -> 149.093675 | P46: 341.976675 | Q46: 126.806675 | R46: =R32/1000 -> 143.00756 | S46: 308.51656 | T46: 112.84719 | U46: =U32/1000 -> 126.08313 | V46: 280.06813 | W46: 96.79413

Sheet Reactive
B2: Costs | C2: 2018-04-01 | D2: 2018-05-01 | E2: 2018-06-01 | F2: 2018-07-01 | G2: 2018-08-01 | H2: 2018-09-01 | I2: 2018-10-01 | J2: 2018-11-01 | K2: 2018-12-01 | L2: 2019-01-01 | M2: 2019-02-01 | N2: 2019-03-01
B3: AS-BM Default Utilisation (Mandatory - CVA) | C3: 6.27027937 | D3: 6.95021315 | E3: 7.26335941 | F3: 6.45500562 | G3: 6.60085665 | H3: 6.07048918 | I3: 6.71078347
B4: AS-BM Utilisation (Mandatory - SVA) | C4: 0.00693801 | D4: 0.0069933 | E4: 0.0047685 | F4: 0.00586105 | G4: 0.00777448 | H4: 0.01114969 | I4: 0.01255416
B5: AS-BM Reactive Utilisation (Commercial) | C5: 0.125 | D5: 0 | E5: 0 | F5: 0 | G5: 0 | H5: 0 | I5: 0.27175
B6: AS-BM Syncronous Compensation ( Commerical) | C6: 0.06361073039 | D6: 0.116945292 | E6: 0.0922529 | F6: 0.10103509 | G6: 0.08813620767 | H6: 0.00486076191 | I6: 0.01274528
B7: Power Potential ( Commercial) | C7: 0 | D7: 0 | E7: 0 | F7: 0 | G7: 0 | H7: 0 | I7: 0
C10: 2018-04-01 | D10: 2018-05-01 | E10: 2018-06-01 | F10: 2018-07-01 | G10: 2018-08-01 | H10: 2018-09-01 | I10: 2018-10-01 | J10: 2018-11-01 | K10: 2018-12-01 | L10: 2019-01-01 | M10: 2019-02-01 | N10: 2019-03-01
B11: BM Default Utilisation (Mandatory - CVA) | C11: 2115437.95 | D11: 2364237.43 | E11: 2412139.45 | F11: 2087880.81 | G11: 2105063.69 | H11: 1855789.89 | I11: 1976159.58
B12: BM Reactive Utilisation (Commercial) | C12: 2489 | D12: 2280 | E12: 1517 | F12: 1809 | G12: 2376 | H12: 3250.66 | I12: 3391.84
B13: BM Utilisation (Mandatory - SVA) | C13: 0 | D13: 0 | E13: 0 | F13: 0 | G13: 0 | H13: 0 | I13: 0
B14: Power Potential (Commercial) | C14: 0 | D14: 0 | E14: 0 | F14: 0 | G14: 0 | H14: 0 | I14: 0
C15: =SUM(C11:C14) -> 2117926.95 | D15: =SUM(D11:D14) -> 2366517.43 | E15: 2413656.45 | F15: 2089689.81 | G15: 2107439.69 | H15: 1859040.55 | I15: 1979551.42 | J15: 0 | K15: 0 | L15: 0 | M15: 0 | N15: 0
B18: Reporting Month
B19: =HLOOKUP(Main!E1,Reactive!C10:N15,6,FALSE) -> 1979551.42

Sheet Black Start
B2: Costs | C2: 2018-04-01 | D2: 2018-05-01 | E2: 2018-06-01 | F2: 2018-07-01 | G2: 2018-08-01 | H2: 2018-09-01 | I2: 2018-10-01 | J2: 2018-11-01 | K2: 2018-12-01 | L2: 2019-01-01 | M2: 2019-02-01 | N2: 2019-03-01
B3: BM Black Start Availability (Commercial) | C3: 3.13100327 | D3: 3.31364306 | E3: 3.08112215 | F3: 2.78904344 | G3: 3.15267309 | H3: 2.89971117 | I3: 3.28686228
B4: Interconnector Black Start Availability (Commercial) | C4: 0.0446469 | D4: 0.03239496 | E4: 0.0498384 | F4: 0.04838478 | G4: 0.05149968 | H4: 0.0498384 | I4: 0.05149968
B5: BM Black Start Test (Commerical) | C5: 0 | D5: 0 | E5: 0 | F5: 0 | G5: 0 | H5: 0.014018 | I5: 0
B6: BM Black Start Capital Contributions (Commerical) | C6: 0 | D6: 0 | E6: 0 | F6: 0 | G6: 0 | H6: 0.16780716 | I6: 0
B7: BM Black Start Feasibility (Commercial) | C7: 0 | D7: 0.223575204 | E7: 0 | F7: 0 | G7: 0.04593399876 | H7: 0.186 | I7: 0
B8: BM Black Start Warming (Commercial) | C8: 0.1904 | D8: 0.1008 | E8: 0.1008 | F8: 0.224 | G8: 0.3248 | H8: 0.1232 | I8: 0.1344
B9: BM Black Start Other (Commerical) | C9: 0 | D9: 0 | E9: 0 | F9: 0 | G9: 0 | H9: 0 | I9: 0

Sheet Other Reserves
B2: Costs | C2: 2018-04-01 | D2: 2018-05-01 | E2: 2018-06-01 | F2: 2018-07-01 | G2: 2018-08-01 | H2: 2018-09-01 | I2: 2018-10-01 | J2: 2018-11-01 | K2: 2018-12-01 | L2: 2019-01-01 | M2: 2019-02-01 | N2: 2019-03-01
B3: BM Warming (Commercial) | C3: 0.092 | D3: 0.05175016 | E3: 0.0069 | F3: 0.06603666 | G3: 0.1015595 | H3: 0.11536667 | I3: 0.42221401
B4: BM Demand Turn Up (Commercial) | C4: 0 | D4: 0 | E4: 0 | F4: 0 | G4: 0 | H4: 0 | I4: 0
B5: BM Power Potential (Commercial) | C5: 0 | D5: 0 | E5: 0 | F5: 0 | G5: 0 | H5: 0 | I5: 0
B6: NBM Demand Turn Up (Commerical) | C6: 0 | D6: 0.03179284 | E6: 0.03898697 | F6: 0.11493934 | G6: 0.03906052 | H6: 0.02843692 | I6: 0.02590878
B7: BM GT Fast Start Availability (Commerial) | C7: 0.40913444 | D7: 0.4156603 | E7: 0.38598528 | F7: 0.43290861 | G7: 0.45567308 | H7: 0.41326053 | I7: 0.3759221
B8: Hydro Rapid Start And GT Fast Start Utilisation (Commercial) | C8: 0 | D8: 0 | E8: 0 | F8: 0 | G8: 0 | H8: 0 | I8: 0.09622613333
B9: Hydro Optional Spin Pump (Commercial) | C9: 0.28598499 | D9: 0.4205025 | E9: 0.39410752 | F9: 0.54507834 | G9: 0.562195 | H9: 0.49811085 | I9: 0.40206
C12: 2018-04-01 | D12: 2018-05-01 | E12: 2018-06-01 | F12: 2018-07-01 | G12: 2018-08-01 | H12: 2018-09-01 | I12: 2018-10-01 | J12: 2018-11-01 | K12: 2018-12-01 | L12: 2019-01-01 | M12: 2019-02-01 | N12: 2019-03-01
A13: availability | B13: Hydro Optional Spin Pump availability (MWh) | C13: 20732.75 | D13: 27099.7 | E13: 26412.1 | F13: 38711.8 | G13: 37026.65 | H13: 35267.2 | I13: 29192.05
B14: Hydro Rapid Start And GT Fast Start utilisation (MWh) | C14: 0 | D14: 0 | E14: 0 | F14: 0 | G14: 0 | H14: 0 | I14: 137.67
A15: sites | B15: BM GT Fast Start Availability number of sites | C15: 20 | D15: 19 | E15: 18 | F15: 17 | G15: 19
B16: NBM Demand Turn Up utilisation (MWh) | C16: 0 | D16: 0 | E16: 0 | F16: 0 | G16: 0 | H16: 0 | I16: 0
B17: BM Power Potential utilisation (MWh) | C17: 0 | D17: 0 | E17: 0 | F17: 0 | G17: 0 | H17: 0 | I17: 0
B18: BM Demand Turn Up utilisation (MWh) | C18: 0 | D18: 0 | E18: 0 | F18: 0 | G18: 0 | H18: 0 | I18: 0
A19: instructions | B19: BM Warming instructions | C19: 3 | D19: 5 | E19: 1 | F19: 6 | G19: 3 | H19: 7 | I19: 27

Sheet Minor components
B2: Costs | C2: 2018-04-30 | D2: 2018-05-31 | E2: 2018-06-30 | F2: 2018-07-31 | G2: 2018-08-31 | H2: 2018-09-30 | I2: 2018-10-31 | J2: 2018-11-30 | K2: 2018-12-31 | L2: 2019-01-31 | M2: 2019-02-28 | N2: 2019-03-31
B3: BM - Minor Components | C3: 1.22021737 | D3: 1.149456683 | E3: 1.59459011 | F3: 1.52649363 | G3: 2.492471511 | H3: 2.754918395 | I3: 1.944227425
B4: SO-SO - Minor Components | C4: 0 | D4: 0 | E4: 0 | F4: 0 | G4: 0 | H4: 0 | I4: 0
B5: AS - Minor Components | C5: 0.2005764954 | D5: 0.2070297546 | E5: 0.2003513754 | F5: 0.2070297546 | G5: 0.2070297546 | H5: 0.2003513754 | I5: 0
B6: Non-Delivery & Reconciliation
B7: Non Delivery | C7: -0.343497 | D7: -0.43191785 | E7: -0.48340252 | F7: -0.58798718 | G7: -0.5490431 | H7: -1.07461531 | I7: -0.8741023
B8: Reconcilliation | C8: -0.4641243442 | D8: -0.4908805216 | E8: -0.5990885264 | F8: -0.6291931236 | G8: -0.6634097786 | H8: -1.246201458 | I8: -1.494726993
